fUSD/lending_fUSD_20240117
["ID","MTS","AMOUNT","RATE_DAILY","PERIOD"]
[311959120,1705518635681,-500.0,0.00021917,2]
[311959121,1705518635692,-500.0,0.00021917,2]
[311959122,1705518635703,-500.0,0.00021917,2]
[311959123,1705518635713,-500.0,0.00021917,2]
[311959124,1705518635724,-523.02,0.00021917,2]
[311959125,1705518635734,-505.93780467,0.00021917,2]
[311959126,1705518635744,-641.31,0.00021917,2]
[311959127,1705518635754,-500.0,0.00021917,2]
[311959128,1705518635763,-500.0,0.00021917,2]
[311959129,1705518635775,-500.0,0.00021917,2]
[311959130,1705518635787,-500.0,0.00021917,2]
[311959131,1705518635799,-500.0,0.00021917,2]
[311959132,1705518635809,-500.0,0.00021917,2]
[311959133,1705518635820,-557.24,0.00021917,2]
[311959134,1705518635832,-500.0,0.00021917,2]
[311959135,1705518635844,-500.0,0.00021917,2]
[311959136,1705518635854,-500.0,0.00021917,2]
[311959137,1705518635865,-500.0,0.00021917,2]
[311959138,1705518635877,-672.98,0.00021917,2]
[311959139,1705518635887,-500.0,0.00021917,2]
[311959140,1705518635898,-174.79,0.00021917,2]
[311959141,1705518635908,-500.0,0.00021917,2]
[311959142,1705518635920,-500.0,0.00021917,2]
[311959143,1705518635931,-500.0,0.00021917,2]
[311959144,1705518635941,-500.0,0.00021917,2]
[311959145,1705518635952,-500.0,0.00021917,2]
[311959146,1705518635962,-500.0,0.00021917,2]
[311959147,1705518635973,-500.0,0.00021917,2]
[311959148,1705518635984,-500.0,0.00021917,2]
[311959149,1705518635995,-500.0,0.00021917,2]
[311959150,1705518636006,-500.0,0.00021917,2]
[311959151,1705518636017,-500.0,0.00021917,2]
[311959152,1705518636029,-500.0,0.00021917,2]
[311959153,1705518636040,-302.59,0.00021917,2]
[311959154,1705518636051,-500.0,0.00021917,2]
[311959155,1705518636063,-500.0,0.00021917,2]
[311959156,1705518636075,-500.0,0.00021917,2]
[311959157,1705518636085,-330.63,0.00021917,2]
[311959158,1705518636095,-509.99,0.00021917,2]
[311959159,1705518636105,-500.0,0.00021917,2]
[311959160,1705518636115,-500.0,0.00021917,2]
[311959161,1705518636125,-471.86354161,0.00021917,2]
[311959162,1705518636135,-500.0,0.00021917,2]
[311959163,1705518636146,-500.0,0.00021917,2]
[311959164,1705518636157,-500.0,0.00021917,2]
[311959165,1705518636167,-500.0,0.00021917,2]
[311959166,1705518636178,-500.0,0.00021917,2]
[311959167,1705518636191,-500.0,0.00021917,2]
[311959168,1705518636204,-500.0,0.00021917,2]
[311959169,1705518636215,-500.0,0.00021917,2]
[311959170,1705518636225,-500.0,0.00021917,2]
[311959171,1705518636235,-500.0,0.00021917,2]
[311959172,1705518636247,-500.0,0.00021917,2]
[311959173,1705518636258,-500.0,0.00021917,2]
[311959174,1705518636270,-414.83,0.00021917,2]
[311959175,1705518636280,-500.0,0.00021917,2]
[311959176,1705518636290,-500.0,0.00021917,2]
[311959177,1705518636300,-500.0,0.00021917,2]
[311959178,1705518636310,-500.0,0.00021917,2]
[311959179,1705518636321,-1313.59,0.00021917,2]
[311959180,1705518636331,-500.0,0.00021917,2]
[311959181,1705518636341,-500.0,0.00021917,2]
[311959182,1705518636351,-500.0,0.00021917,2]
[311959183,1705518636362,-500.0,0.00021917,2]
[311959184,1705518636372,-500.0,0.00021917,5]
[311959185,1705518636382,-500.0,0.00021917,2]
[311959186,1705518636392,-500.0,0.00021917,2]
[311959187,1705518636403,-500.0,0.00021917,2]
[311959188,1705518636413,-500.0,0.00021917,2]
[311959189,1705518636423,-500.0,0.00021917,2]
[311959190,1705518636434,-500.0,0.00021917,2]
[311959191,1705518636444,-2085.33040653,0.00021917,2]
[311959192,1705518636454,-500.0,0.00021917,2]
[311959193,1705518636464,-500.0,0.00021917,2]
[311959194,1705518636474,-500.0,0.00021917,2]
[311959195,1705518636484,-500.0,0.00021917,2]
[311959196,1705518636494,-500.0,0.00021917,2]
[311959197,1705518636504,-500.0,0.00021917,2]
[311959198,1705518636514,-500.0,0.00021917,2]
[311959199,1705518636525,-500.0,0.00021917,2]
[311959200,1705518636535,-500.0,0.00021917,2]
[311959201,1705518636546,-500.0,0.00021917,2]
[311959202,1705518636556,-500.0,0.00021917,2]
[311959203,1705518636566,-500.0,0.00021917,2]
[311959204,1705518636580,-500.0,0.00021917,2]
[311959205,1705518636590,-500.0,0.00021917,2]
[311959206,1705518636601,-500.0,0.00021917,2]
[311959207,1705518636611,-500.0,0.00021917,2]
[311959208,1705518636621,-500.0,0.00021917,2]
[311959209,1705518636632,-631.29,0.00021917,2]
[311959210,1705518636642,-500.0,0.00021917,2]
[311959211,1705518636653,-421.88,0.00021917,2]
[311959212,1705518636663,-500.0,0.00021917,2]
[311959213,1705518636674,-500.0,0.00021917,2]
[311959214,1705518636684,-500.0,0.00021917,2]
[311959215,1705518636695,-352.38,0.00021917,2]
[311959216,1705518636705,-500.0,0.00021917,2]
[311959217,1705518636717,-519.59,0.00021917,2]
[311959218,1705518636727,-500.0,0.00021917,2]
[311959219,1705518636738,-502.23749557,0.00021917,2]
[311959220,1705518636748,-500.0,0.00021917,2]
[311959221,1705518636758,-500.0,0.00021917,2]
[311959222,1705518636769,-500.0,0.00021917,2]
[311959223,1705518636779,-527.34,0.00021917,2]
[311959224,1705518636789,-500.0,0.00021917,2]
[311959225,1705518636799,-500.0,0.00021917,2]
[311959226,1705518636809,-500.0,0.00021917,2]
[311959227,1705518636820,-570.35,0.00021917,2]
[311959228,1705518636831,-500.0,0.00021917,2]
[311959229,1705518636841,-622.96,0.00021917,2]
[311959230,1705518636851,-500.0,0.00021917,2]
[311959231,1705518636861,-500.0,0.00021917,2]
[311959232,1705518636871,-500.0,0.00021917,2]
[311959233,1705518636882,-500.0,0.00021917,2]
[311959234,1705518636892,-500.0,0.00021917,2]
[311959235,1705518636902,-489.38050005,0.00021917,2]
[311959236,1705518636912,-500.0,0.00021917,2]
[311959237,1705518636923,-500.0,0.00021917,2]
[311959238,1705518636933,-678.27,0.00021917,2]
[311959239,1705518636944,-500.0,0.00021917,2]
[311959240,1705518636954,-500.0,0.00021917,2]
[311959241,1705518636964,-500.0,0.00021917,2]
[311959242,1705518636974,-500.0,0.00021917,2]
[311959243,1705518636984,-500.0,0.00021917,2]
[311959244,1705518636994,-500.0,0.00021917,2]
[311959245,1705518637004,-500.0,0.00021917,2]
[311959246,1705518637014,-566.61,0.00021917,2]
[311959247,1705518637024,-500.0,0.00021917,2]
[311959248,1705518637034,-500.0,0.00021917,2]
[311959249,1705518637044,-500.0,0.00021917,2]
[311959250,1705518637054,-500.0,0.00021917,2]
[311959251,1705518637065,-500.0,0.00021917,2]
[311959252,1705518637075,-500.0,0.00021917,2]
[311959253,1705518637085,-500.0,0.00021917,2]
[311959254,1705518637095,-500.0,0.00021917,2]
[311959255,1705518637105,-500.0,0.00021917,2]
[311959256,1705518637115,-500.0,0.00021917,2]
[311959257,1705518637126,-500.0,0.00021917,2]
[311959258,1705518637136,-500.0,0.00021917,2]
[311959259,1705518637147,-636.42,0.00021917,2]
[311959260,1705518637157,-500.0,0.00021917,2]
[311959261,1705518637167,-500.0,0.00021917,2]
[311959262,1705518637177,-500.0,0.00021917,2]
[311959263,1705518637188,-500.0,0.00021917,2]
[311959264,1705518637203,-500.0,0.00021917,2]
[311959265,1705518637213,-500.0,0.00021917,2]
[311959266,1705518637223,-534.28,0.00021917,2]
[311959267,1705518637234,-500.0,0.00021917,2]
[311959268,1705518637244,-500.0,0.00021917,2]
[311959269,1705518637254,-315.03,0.00021917,2]
[311959270,1705518637264,-500.0,0.00021917,2]
[311959271,1705518637275,-500.0,0.00021917,2]
[311959272,1705518637285,-500.0,0.00021917,2]
[311959273,1705518637295,-500.0,0.00021917,2]
[311959274,1705518637305,-500.0,0.00021917,2]
[311959275,1705518637315,-500.0,0.00021917,2]
[311959276,1705518637327,-384.37,0.00021917,2]
[311959277,1705518637338,-500.0,0.00021917,2]
[311959278,1705518637348,-500.0,0.00021917,2]
[311959279,1705518637357,-500.0,0.00021917,2]
[311959280,1705518637367,-500.0,0.00021917,2]
[311959281,1705518637377,-500.0,0.00021917,2]
[311959282,1705518637387,-361.74,0.00021917,2]
[311959283,1705518637396,-500.0,0.00021917,2]
[311959284,1705518637406,-3239.46,0.00021917,2]
[311959285,1705518637416,-235.79,0.00021917,2]
[311959286,1705518637427,-500.0,0.00021917,2]
[311959287,1705518637437,-500.0,0.00021917,2]
[311959288,1705518637448,-500.0,0.00021917,2]
[311959289,1705518637457,-500.0,0.00021917,2]
[311959290,1705518637467,-500.0,0.00021917,2]
[311959291,1705518637477,-500.0,0.00021917,2]
[311959292,1705518637486,-500.0,0.00021917,2]
[311959293,1705518637496,-356.74,0.00021917,2]
[311959294,1705518637506,-500.0,0.00021917,2]
[311959295,1705518637516,-500.0,0.00021917,2]
[311959296,1705518637526,-500.0,0.00021917,2]
[311959297,1705518637536,-500.0,0.00021917,2]
[311959298,1705518637545,-500.0,0.00021917,2]
[311959299,1705518637555,-500.0,0.00021917,2]
[311959300,1705518637565,-500.0,0.00021917,2]
[311959301,1705518637575,-500.0,0.00021917,2]
[311959302,1705518637586,-500.0,0.00021917,2]
[311959303,1705518637595,-500.0,0.00021917,2]
[311959304,1705518637606,-500.0,0.00021917,2]
[311959305,1705518637615,-500.0,0.00021917,2]
[311959306,1705518637625,-500.0,0.00021917,2]
[311959307,1705518637635,-500.0,0.00021917,2]
[311959308,1705518637645,-620.85,0.00021917,2]
[311959309,1705518637654,-500.0,0.00021917,2]
[311959310,1705518637664,-500.0,0.00021917,2]
[311959311,1705518637674,-500.0,0.00021917,2]
[311959312,1705518637684,-500.0,0.00021917,2]
[311959313,1705518637694,-500.0,0.00021917,2]
[311959314,1705518637704,-500.0,0.00021917,2]
[311959315,1705518637714,-500.0,0.00021917,2]
[311959316,1705518637724,-389.3118215,0.00021917,2]
[311959317,1705518637734,-500.0,0.00021917,2]
[311959318,1705518637743,-500.0,0.00021917,2]
[311959319,1705518637753,-405.67,0.00021917,2]
[311959320,1705518637763,-500.0,0.00021917,2]
[311959321,1705518637773,-500.0,0.00021917,2]
[311959322,1705518637783,-500.0,0.00021917,2]
[311959323,1705518637793,-500.0,0.00021917,2]
[311959324,1705518637803,-641.63,0.00021917,2]
[311959325,1705518637812,-3149.98,0.00021917,2]
[311959326,1705518637822,-500.0,0.00021917,2]
[311959327,1705518637832,-1829.3,0.00021917,5]
[311959328,1705518637842,-500.0,0.00021917,2]
[311959329,1705518637852,-500.0,0.00021917,2]
[311959330,1705518637862,-500.0,0.00021917,2]
[311959331,1705518637871,-579.57,0.00021917,2]
[311959333,1705518637882,-562.07,0.00021917,2]
[311959335,1705518637891,-500.0,0.00021917,2]
[311959337,1705518637901,-500.0,0.00021917,2]
[311959339,1705518637911,-500.0,0.00021917,2]
[311959341,1705518637921,-500.0,0.00021917,2]
[311959343,1705518637931,-500.0,0.00021917,2]
[311959345,1705518637940,-503.98,0.00021917,2]
[311959346,1705518637950,-500.0,0.00021917,2]
[311959347,1705518637960,-500.0,0.00021917,2]
[311959348,1705518637969,-500.0,0.00021917,2]
[311959349,1705518637979,-500.0,0.00021917,2]
[311959350,1705518637989,-5373.8,0.00021917,2]
[311959351,1705518637999,-500.0,0.00021917,2]
[311959352,1705518638009,-500.0,0.00021917,2]
[311959353,1705518638019,-585.19,0.00021917,2]
[311959354,1705518638029,-502.27356523,0.00021917,2]
[311959355,1705518638039,-500.0,0.00021917,2]
[311959356,1705518638049,-500.0,0.00021917,2]
[311959357,1705518638059,-500.0,0.00021917,2]
[311959358,1705518638069,-500.0,0.00021917,2]
[311959359,1705518638079,-500.0,0.00021917,2]
[311959360,1705518638090,-500.0,0.00021917,2]
[311959361,1705518638100,-899.97,0.00021917,2]
[311959362,1705518638110,-500.0,0.00021917,2]
[311959363,1705518638120,-500.0,0.00021917,2]
[311959364,1705518638130,-500.0,0.00021917,2]
[311959365,1705518638141,-500.0,0.00021917,2]
[311959366,1705518638151,-540.4,0.00021917,2]
[311959367,1705518638162,-285.39,0.00021917,2]
[311959368,1705518638173,-336.89,0.00021917,2]
[311959369,1705518638182,-500.0,0.00021917,2]
[311959370,1705518638195,-500.0,0.00021917,2]
[311959371,1705518638205,-500.0,0.00021917,2]
[311959372,1705518638215,-500.0,0.00021917,2]
[311959373,1705518638225,-562.81,0.00021917,2]
[311959374,1705518638236,-500.0,0.00021917,2]
[311959375,1705518638246,-500.0,0.00021917,2]
[311959376,1705518638256,-500.0,0.00021917,2]
[311959377,1705518638267,-500.0,0.00021917,2]
[311959378,1705518638279,-500.0,0.00021917,2]
[311959379,1705518638289,-500.0,0.00021917,2]
[311959380,1705518638299,-500.0,0.00021917,2]
[311959381,1705518638310,-250.0,0.00021918,2]
[311959382,1705518638319,-10000.0,0.00021918,2]
[311959383,1705518638330,-177.46,0.00021922,2]
[311959384,1705518638340,-916.4382045,0.00021956,2]
[311959385,1705518638350,-340066.0,0.00021966,2]
[311959386,1705518638360,-276.81020273,0.00021967,2]
[311959387,1705518638370,-769.75324247,0.00021972,2]
[311959388,1705518638380,-238.16372364,0.0002198,2]
[311959389,1705518638390,-162.15,0.00021989,2]
[311959390,1705518638400,-618.7073759,0.00022,2]
[311959391,1705518638410,-1041.66122871,0.00022,2]
[311959392,1705518638420,-2780.01755274,0.00022,2]
[311959394,1705518638430,-800.0,0.00022013,2]
[311959397,1705518638440,-207.78272895,0.00022016,2]
[311959399,1705518638450,-155.0,0.00022016,2]
[311959401,1705518638460,-310.59622507,0.00022016,2]
[311959403,1705518638469,-523.67184027,0.00022016,2]
[311959405,1705518638480,-2131.64195321,0.00022016,2]
[311959407,1705518638489,-667.96898179,0.00022016,2]
[311959449,1705518638499,-1437.26002763,0.00022016,2]
[311959452,1705518638890,-221.41381807,0.00022017,2]
[311959455,1705518638906,-500.0,0.00022017,2]
[311959457,1705518638916,-570.35,0.00022017,2]
[311959459,1705518638925,-570.35,0.00022017,2]
[311959461,1705518638934,-500.0,0.00022017,2]
[311959463,1705518638942,-154.42,0.00022056,2]
[311959465,1705518638951,-250.0,0.00022074,2]
[311959467,1705518638961,-620.88,0.0002209,2]
[311959469,1705518638969,-200.0,0.00022096,2]
[311959471,1705518638978,-200.0,0.00022096,2]
[311959473,1705518638987,-769.75324247,0.00022126,2]
[311959474,1705518638996,-177.46,0.00022131,2]
[311959477,1705518639006,-800.0,0.00022164,2]
[311959478,1705518639015,-500.0,0.00022188,2]
[311959480,1705518639023,-500.0,0.00022188,2]
[311959483,1705518639033,-156.24527716,0.00022189,2]
[311959484,1705518639042,-500.0,0.00022189,2]
[311959487,1705518639051,-500.0,0.00022189,2]
[311959489,1705518639061,-498.65185418,0.0002219,2]
[311959490,1705518639070,-500.0,0.0002219,2]
[311959492,1705518639079,-543.96,0.00022191,2]
[311959494,1705518639089,-500.0,0.00022191,2]
[311959496,1705518639098,-500.0,0.00022191,2]
[311959499,1705518639108,-500.0,0.00022191,2]
[311959500,1705518639117,-500.0,0.00022191,2]
[311959502,1705518639127,-367.62,0.00022191,2]
[311959505,1705518639136,-349.34,0.00022191,2]
[311959506,1705518639145,-355.64499651,0.00022191,2]
[311959509,1705518639155,-500.0,0.00022191,2]
[311959510,1705518639164,-500.0,0.00022191,2]
[311959513,1705518639173,-356.13,0.00022191,2]
[311959515,1705518639185,-500.0,0.00022191,2]
[311959517,1705518639197,-500.0,0.00022191,2]
[311959519,1705518639206,-508.5,0.00022191,2]
[311959521,1705518639215,-283.91,0.00022191,2]
[311959523,1705518639225,-443.37,0.00022191,2]
[311959525,1705518639234,-213.71,0.00022191,2]
[311959527,1705518639245,-395.64,0.00022191,2]
[311959529,1705518639253,-359.35,0.00022191,2]
[311959531,1705518639262,-500.0,0.00022191,2]
[311959533,1705518639273,-476.64,0.00022191,2]
[311959535,1705518639282,-500.0,0.00022191,2]
[311959537,1705518639290,-500.0,0.00022191,2]
[311959539,1705518639300,-483.51,0.00022191,2]
[311959541,1705518639309,-500.0,0.00022191,2]
[311959543,1705518639318,-500.0,0.00022191,2]
[311959545,1705518639328,-271.24,0.00022191,2]
[311959547,1705518639337,-210.31,0.00022191,2]
[311959549,1705518639346,-500.0,0.00022191,2]
[311959551,1705518639355,-334.91,0.00022191,2]
[311959553,1705518639365,-404.2,0.00022191,2]
[311959555,1705518639374,-256.2,0.00022191,2]
[311959556,1705518639383,-414.27,0.00022191,2]
[311959557,1705518639392,-500.0,0.00022191,2]
[311959558,1705518639402,-500.0,0.00022191,2]
[311959559,1705518639411,-500.0,0.00022191,2]
[311959560,1705518639420,-557.24,0.00022191,2]
[311959561,1705518639428,-500.0,0.00022191,2]
[311959562,1705518639438,-500.0,0.00022191,2]
[311959563,1705518639447,-558.41,0.00022191,2]
[311959564,1705518639456,-500.0,0.00022191,2]
[311959566,1705518639465,-672.98,0.00022191,2]
[311959567,1705518639474,-500.0,0.00022191,2]
[311959569,1705518639483,-500.0,0.00022191,2]
[311959571,1705518639492,-500.0,0.00022191,2]
[311959573,1705518639501,-500.0,0.00022191,2]
[311959576,1705518639512,-500.0,0.00022191,2]
[311959578,1705518639521,-500.0,0.00022191,2]
[311959580,1705518639530,-607.05,0.00022191,2]
[311959581,1705518639539,-500.0,0.00022191,2]
[311959583,1705518639548,-500.0,0.00022191,2]
[311959586,1705518639558,-500.0,0.00022191,2]
[311959587,1705518639567,-500.0,0.00022191,2]
[311959590,1705518639577,-500.0,0.00022191,2]
[311959591,1705518639586,-500.0,0.00022191,2]
[311959593,1705518639595,-243.14,0.00022191,2]
[311959595,1705518639604,-461.12,0.00022191,2]
[311959598,1705518639614,-500.0,0.00022191,2]
[311959599,1705518639623,-500.0,0.00022191,2]
[311959601,1705518639632,-500.0,0.00022191,2]
[311959603,1705518639642,-223.67,0.00022191,2]
[311959605,1705518639651,-500.0,0.00022191,2]
[311959607,1705518639660,-500.0,0.00022191,2]
[311959609,1705518639670,-500.0,0.00022191,2]
[311959611,1705518639679,-500.0,0.00022191,2]
[311959612,1705518639689,-500.0,0.00022191,2]
[311959614,1705518639698,-500.0,0.00022191,2]
[311959616,1705518639707,-1313.59,0.00022191,2]
[311959618,1705518639716,-261.39,0.00022191,2]
[311959620,1705518639724,-272.55,0.00022191,2]
[311959622,1705518639734,-500.0,0.00022191,2]
[311959624,1705518639742,-500.0,0.00022191,5]
[311959626,1705518639752,-500.0,0.00022191,2]
[311959628,1705518639761,-566.67,0.00022191,2]
[311959630,1705518639770,-500.0,0.00022191,2]
[311959632,1705518639779,-500.0,0.00022191,2]
[311959636,1705518639788,-500.0,0.00022191,2]
[311959639,1705518639798,-500.0,0.00022191,2]
[311959642,1705518639807,-500.0,0.00022191,2]
[311959643,1705518639816,-500.0,0.00022191,2]
[311959645,1705518639825,-193.77,0.00022191,2]
[311959647,1705518639834,-500.0,0.00022191,2]
[311959649,1705518639843,-500.0,0.00022191,2]
[311959651,1705518639852,-500.0,0.00022191,2]
[311959653,1705518639862,-623.93,0.00022191,2]
[311959655,1705518639871,-500.0,0.00022191,2]
[311959657,1705518639880,-500.0,0.00022191,2]
[311959659,1705518639889,-500.0,0.00022191,2]
[311959661,1705518639898,-500.0,0.00022191,2]
[311959663,1705518639907,-500.0,0.00022191,2]
[311959665,1705518639916,-500.0,0.00022191,2]
[311959668,1705518639926,-519.59,0.00022191,2]
[311959670,1705518639936,-472.68,0.00022191,2]
[311959672,1705518639945,-500.0,0.00022191,2]
[311959674,1705518639954,-500.0,0.00022191,2]
[311959676,1705518639964,-500.0,0.00022191,2]
[311959678,1705518639974,-500.0,0.00022191,2]
[311959679,1705518639982,-500.0,0.00022191,2]
[311959681,1705518639992,-614.82,0.00022191,2]
[311959683,1705518640001,-578.52,0.00022191,2]
[311959686,1705518640010,-500.0,0.00022191,2]
[311959688,1705518640019,-678.27,0.00022191,2]
[311959690,1705518640028,-500.0,0.00022191,2]
[311959692,1705518640038,-500.0,0.00022191,2]
[311959694,1705518640047,-500.0,0.00022191,2]
[311959696,1705518640056,-309.8,0.00022191,2]
[311959698,1705518640066,-566.61,0.00022191,2]
[311959699,1705518640076,-500.0,0.00022191,2]
[311959701,1705518640086,-500.0,0.00022191,2]
[311959704,1705518640095,-500.0,0.00022191,2]
[311959706,1705518640105,-500.0,0.00022191,2]
[311959707,1705518640114,-500.0,0.00022191,2]
[311959710,1705518640123,-500.0,0.00022191,2]
[311959712,1705518640133,-500.0,0.00022191,2]
[311959714,1705518640142,-636.42,0.00022191,2]
[311959716,1705518640151,-500.0,0.00022191,2]
[311959718,1705518640160,-500.0,0.00022191,2]
[311959720,1705518640169,-500.0,0.00022191,2]
[311959722,1705518640178,-500.0,0.00022191,2]
[311959724,1705518640188,-534.28,0.00022191,2]
[311959726,1705518640201,-500.0,0.00022191,2]
[311959728,1705518640210,-500.0,0.00022191,2]
[311959730,1705518640219,-500.0,0.00022191,2]
[311959732,1705518640228,-500.0,0.00022191,2]
[311959734,1705518640238,-500.0,0.00022191,2]
[311959736,1705518640248,-500.0,0.00022191,2]
[311959738,1705518640258,-236.71,0.00022191,2]
[311959740,1705518640267,-494.97,0.00022191,2]
[311959742,1705518640277,-500.0,0.00022191,2]
[311959743,1705518640287,-469.39,0.00022191,2]
[311959745,1705518640296,-500.0,0.00022191,2]
[311959747,1705518640305,-571.69,0.00022191,2]
[311959749,1705518640314,-3239.46,0.00022191,2]
[311959751,1705518640323,-500.0,0.00022191,2]
[311959753,1705518640333,-324.69,0.00022191,2]
[311959755,1705518640342,-500.0,0.00022191,2]
[311959758,1705518640351,-500.0,0.00022191,2]
[311959760,1705518640360,-500.0,0.00022191,2]
[311959761,1705518640369,-500.0,0.00022191,2]
[311959764,1705518640379,-500.0,0.00022191,2]
[311959766,1705518640388,-500.0,0.00022191,2]
[311959768,1705518640397,-500.0,0.00022191,2]
[311959770,1705518640406,-500.0,0.00022191,2]
[311959772,1705518640416,-500.0,0.00022191,2]
[311959775,1705518640426,-500.0,0.00022191,2]
[311959778,1705518640435,-500.0,0.00022191,2]
[311959782,1705518640443,-500.0,0.00022191,2]
[311959785,1705518640452,-500.0,0.00022191,2]
[311959788,1705518640461,-500.0,0.00022191,2]
[311959794,1705518640471,-500.0,0.00022191,2]
[311959797,1705518640481,-500.0,0.00022191,2]
[311959802,1705518640490,-175.79,0.00022191,2]
[311959806,1705518640498,-500.0,0.00022191,2]
[311959810,1705518640508,-500.0,0.00022191,2]
[311959813,1705518640517,-500.0,0.00022191,2]
[311959817,1705518640525,-500.0,0.00022191,2]
[311959821,1705518640534,-500.0,0.00022191,2]
[311959824,1705518640543,-351.21,0.00022191,2]
[311959828,1705518640552,-641.63,0.00022191,2]
[311959829,1705518640562,-3149.98,0.00022191,2]
[311959832,1705518640571,-1829.3,0.00022191,5]
[311959836,1705518640581,-500.0,0.00022191,2]
[311959839,1705518640590,-500.0,0.00022191,2]
[311959842,1705518640599,-500.0,0.00022191,2]
[311959844,1705518640608,-500.0,0.00022191,2]
[311959848,1705518640617,-500.0,0.00022191,2]
[311959851,1705518640627,-500.0,0.00022191,2]
[311959854,1705518640636,-500.0,0.00022191,2]
[311959857,1705518640644,-500.0,0.00022191,2]
[311959860,1705518640654,-500.0,0.00022191,2]
[311959863,1705518640664,-5373.8,0.00022191,2]
[311959866,1705518640672,-500.0,0.00022191,2]
[311959869,1705518640681,-585.19,0.00022191,2]
[311959872,1705518640690,-500.0,0.00022191,2]
[311959875,1705518640699,-500.0,0.00022191,2]
[311959878,1705518640708,-501.09936195,0.00022191,2]
[311959881,1705518640717,-500.0,0.00022191,2]
[311959883,1705518640726,-899.97,0.00022191,2]
[311959886,1705518640735,-500.0,0.00022191,2]
[311959889,1705518640744,-500.0,0.00022191,2]
[311959892,1705518640753,-500.0,0.00022191,2]
[311959895,1705518640762,-500.0,0.00022191,2]
[311959898,1705518640771,-500.0,0.00022191,2]
[311959901,1705518640780,-500.0,0.00022191,2]
[311959903,1705518640789,-500.0,0.00022191,2]
[311959906,1705518640798,-500.0,0.00022191,2]
[311959909,1705518640807,-500.0,0.00022191,2]
[311959911,1705518640816,-238.16372364,0.00022199,2]
[311959914,1705518640826,-1088.73406377,0.00022203,2]
[311959917,1705518640836,-800.0,0.00022274,2]
[311959920,1705518640845,-769.75324247,0.00022281,2]
[311959922,1705518640854,-342.48,0.00022286,2]
[311959925,1705518640866,-176.27,0.00022288,2]
[311959928,1705518640875,-170.84,0.00022299,2]
[311959932,1705518640885,-620.88,0.00022305,2]
[311959934,1705518640893,-177.46,0.0002234,2]
[311959937,1705518640902,-357.35832948,0.00022348,2]
[311959940,1705518640912,-151.02717831,0.00022348,2]
[311959942,1705518640920,-185.08758899,0.00022365,2]
[311959946,1705518640930,-162.15,0.00022374,2]
[311959948,1705518640939,-154.42,0.00022398,2]
[311959950,1705518640949,-238.16372364,0.00022417,2]
[311959954,1705518640958,-185.08758899,0.00022433,2]
[311959955,1705518640968,-1616.81522331,0.00022435,2]
[311959958,1705518640977,-769.75324247,0.00022436,2]
[311959962,1705518640986,-223.21,0.00022445,2]